bitfinex/quotes_SOLUSD_20241111
["timestamp","ask_amount","ask_price","bid_price","bid_amount"]
[1731304693844,30.90831485,205.39,205.31,0.12549]
[1731304694563,30.90831485,205.39,205.33,0.12549]
[1731304694941,30.90831485,205.39,205.32,20.0]
[1731304695141,30.90831485,205.39,205.3,20.12549]
[1731304695347,30.90831485,205.41,205.3,20.12549]
[1731304695646,30.90831485,205.41,205.31,0.12549]
[1731304695842,30.90831485,205.39,205.31,0.12549]
[1731304696043,30.90831485,205.4,205.32,20.0]
[1731304696356,30.90831485,205.39,205.33,0.12549]
[1731304696662,30.90831485,205.41,205.33,0.12549]
[1731304696846,30.90831485,205.41,205.35,20.0]
[1731304697043,4.8662,205.5,205.35,20.0]
[1731304697256,30.90831485,205.44,205.35,20.0]
[1731304697458,30.90831485,205.46,205.36,0.12549]
[1731304697845,4.8646,205.57,205.39,0.22549]
[1731304698047,6.4925,205.59,205.41,0.12549]
[1731304698355,30.90831485,205.53,205.41,0.22549]
[1731304698554,30.90831485,205.51,205.41,0.22549]
[1731304698753,6.4925,205.59,205.41,0.22549]
[1731304698754,30.90831485,205.53,205.43,0.12549]
[1731304699063,6.4925,205.59,205.43,0.12549]
[1731304699361,30.90831485,205.61,205.49,20.12549]
[1731304699564,30.90831485,205.61,205.51,0.12549]
[1731304699965,30.90831485,205.68,205.51,0.12549]
[1731304699966,6.1623,205.7,205.53,0.12549]
[1731304700273,30.90831485,205.63,205.55,20.12549]
[1731304700444,30.90831485,205.63,205.55,25.48658899]
[1731304700646,30.90831485,205.63,205.57,20.0]
[1731304700843,30.90831485,205.65,205.57,20.0]
[1731304701355,30.90831485,205.67,205.58,0.12549]
[1731304701555,4.9603,205.75,205.58,0.12549]
[1731304701868,30.90831485,205.68,205.58,0.12549]
[1731304703606,0.1,205.79,205.58,0.12549]
[1731304703607,30.90831485,205.7,205.6,0.12549]
[1731304703945,30.90831485,205.71,205.6,0.12549]
[1731304704143,30.90831485,205.72,205.62,20.12549]
[1731304704747,30.90831485,205.73,205.62,25.48658899]
[1731304704964,30.90831485,205.73,205.62,25.58658899]
[1731304705745,30.90831485,205.75,205.62,25.58658899]
[1731304705969,30.90831485,205.78,205.67,0.1]
[1731304706147,30.90831485,205.8,205.67,0.1]
[1731304706472,30.90831485,205.79,205.7,0.1]
[1731304706767,15.9361,205.91,205.7,20.1]
[1731304706768,30.90831485,205.81,205.7,20.1]
[1731304706952,30.90831485,205.82,205.72,20.1]
[1731304707267,30.90831485,205.82,205.72,20.0]
[1731304707452,30.90831485,205.82,205.72,25.36109899]
[1731304707652,30.90831485,205.82,205.74,20.0]
[1731304707974,29.90831485,205.82,205.74,20.0]
[1731304708163,19.421601,205.92,205.76,21.8407]
[1731304708371,19.421601,205.92,205.77,20.0]
[1731304708372,30.90831485,205.85,205.77,20.0]
[1731304708749,30.90831485,205.83,205.77,20.0]
[1731304708950,30.90831485,205.81,205.77,20.0]
[1731304709350,30.90831485,205.79,205.77,20.0]
[1731304709850,30.90831485,205.78,205.7,6.4662]
[1731304710162,30.90831485,205.77,205.7,6.4662]
[1731304710753,30.90831485,205.76,205.7,6.4662]
[1731304710955,30.90831485,205.73,205.7,6.4662]
[1731304711263,19.418451,205.96,205.72,0.1]
[1731304711475,30.90831485,205.87,205.74,0.1]
[1731304711647,30.90831485,205.87,205.76,0.12549]
[1731304711857,30.90831485,205.85,205.76,0.12549]
[1731304712173,30.90831485,205.85,205.77,5.94097122]
[1731304712354,30.90831485,205.85,205.78,20.0]
[1731304713368,30.90831485,205.87,205.8,0.12549]
[1731304713589,19.416,205.97,205.8,0.12549]
[1731304713590,30.90831485,205.89,205.81,5.94097122]
[1731304713753,30.90831485,205.85,205.71,2.69778638]
[1731304714071,30.90831485,205.83,205.72,0.12549]
[1731304714270,30.90831485,205.81,205.68,0.1]
[1731304714469,30.90831485,205.79,205.67,5.9122851]
[1731304714671,30.90831485,205.79,205.68,0.1]
[1731304714976,0.12549,205.91,205.68,0.1]
[1731304714977,30.90831485,205.81,205.69,0.97157349]
[1731304715547,30.90831485,205.77,205.69,20.0]
[1731304715751,30.90831485,205.75,205.66,22.038]
[1731304715967,30.90831485,205.75,205.66,21.938]
[1731304716267,30.90831485,205.77,205.66,21.938]
[1731304716451,30.90831485,205.75,205.66,21.938]
[1731304716860,0.12549,205.84,205.67,1.09720942]
[1731304717056,30.90831485,205.8,205.67,7.00949452]
[1731304717265,30.90831485,205.78,205.67,7.00949452]
[1731304717668,30.90831485,205.78,205.67,21.09720942]
[1731304717965,30.90831485,205.76,205.67,20.12549]
[1731304718470,30.90831485,205.79,205.67,20.12549]
[1731304718656,30.90831485,205.77,205.67,20.12549]
[1731304719378,6.0363,205.87,205.67,20.12549]
[1731304719379,30.90831485,205.79,205.67,20.22549]
[1731304719556,30.90831485,205.81,205.69,20.12549]
[1731304719890,30.90831485,205.79,205.7,0.97154805]
[1731304720046,30.90831485,205.79,205.69,0.12549]
[1731304720247,30.90831485,205.79,205.67,5.9122851]
[1731304720248,30.90831485,205.76,205.67,20.0]
[1731304720655,30.90831485,205.73,205.66,21.938]
[1731304720864,30.90831485,205.68,205.61,6.1518]
[1731304721273,23.776884,205.79,205.61,6.1518]
[1731304721274,30.90831485,205.69,205.61,6.1518]
[1731304721475,30.90831485,205.68,205.61,6.1518]
[1731304722250,30.90831485,205.68,205.62,20.0]
[1731304722456,30.90831485,205.68,205.61,6.1518]
[1731304722863,30.90831485,205.66,205.61,6.1518]
[1731304723062,30.90831485,205.68,205.61,6.1518]
[1731304723275,30.90831485,205.72,205.62,6.91312176]
[1731304723471,30.90831485,205.72,205.62,0.97215054]
[1731304723673,30.90831485,205.72,205.61,6.1518]
[1731304723872,30.90831485,205.7,205.61,6.1518]
[1731304724057,30.90831485,205.7,205.62,20.0]
[1731304725181,30.90831485,205.72,205.63,0.97208804]
[1731304725391,30.90831485,205.71,205.63,0.97208804]
[1731304725683,30.90831485,205.75,205.63,0.97202979]
[1731304725868,30.90831485,205.75,205.65,20.12549]
[1731304726060,30.90831485,205.78,205.67,0.12549]
[1731304726267,30.90831485,205.78,205.66,0.12549]
[1731304726573,30.90831485,205.76,205.63,20.0]
[1731304726973,30.90831485,205.78,205.66,0.12549]
[1731304727487,30.90831485,205.82,205.68,0.12549]
[1731304727683,30.90831485,205.82,205.69,0.97159189]
[1731304727889,30.90831485,205.8,205.69,0.97159189]
[1731304728687,30.90831485,205.82,205.7,6.06646122]
[1731304728869,30.90831485,205.82,205.71,20.0]
[1731304729186,30.90831485,205.81,205.71,20.0]
[1731304729384,30.90831485,205.81,205.68,20.12549]
[1731304729688,21.9481,205.86,205.64,29.71785522]
[1731304729689,30.90831485,205.8,205.64,29.71785522]
[1731304729872,30.90831485,205.8,205.65,0.97165332]
[1731304730071,30.90831485,205.8,205.66,0.12549]
[1731304730273,30.90831485,205.8,205.68,0.12549]
[1731304730494,30.90831485,205.82,205.7,0.12549]
[1731304730986,30.90831485,205.82,205.71,0.97152564]
[1731304731192,30.90831485,205.82,205.72,0.12549]
[1731304731490,15.2209,205.94,205.74,0.12549]
[1731304731673,30.90831485,205.88,205.76,0.12549]
[1731304732074,30.90831485,205.88,205.76,5.94097122]
[1731304732269,0.12549,205.92,205.75,0.97119498]
[1731304732475,30.90831485,205.85,205.74,20.0]
[1731304733399,30.90831485,205.87,205.75,0.12549]
[1731304733576,11.3713,205.93,205.77,0.12549]
[1731304733577,30.90831485,205.89,205.77,0.12549]
[1731304733775,30.90831485,205.89,205.78,6.91220632]
[1731304733974,30.90831485,205.89,205.79,20.0]
[1731304734291,30.90831485,205.89,205.79,25.94097122]
[1731304734673,30.90831485,205.89,205.78,0.9712351]
[1731304735772,30.90831485,205.89,205.79,6.06646122]
[1731304735972,30.90831485,205.89,205.8,20.97117106]
[1731304736202,30.90831485,205.89,205.82,20.0]
[1731304736699,30.90831485,205.89,205.75,6.0122851]
[1731304736700,30.90831485,205.84,205.76,20.97120366]
[1731304736990,30.90831485,205.86,205.73,6.5803]
[1731304737170,30.90831485,205.88,205.77,5.94097122]
[1731304738101,30.90831485,205.88,205.78,20.97132269]
[1731304738401,30.90831485,205.9,205.8,20.0]
[1731304738571,30.90831485,205.9,205.82,20.0]
[1731304738779,30.90831485,205.9,205.82,25.94097122]
[1731304739074,30.90831485,205.88,205.82,20.0]
[1731304739270,30.90831485,205.88,205.79,20.0]
[1731304739486,30.90831485,205.86,205.78,5.94097122]
[1731304740675,30.90831485,205.86,205.79,20.0]
[1731304741289,4.98209,205.91,205.79,20.0]
[1731304741472,30.90831485,205.88,205.8,20.0]
[1731304741677,30.90831485,205.87,205.8,25.94097122]
[1731304742569,30.90831485,205.91,205.81,1.09682766]
[1731304742769,30.90831485,205.87,205.82,20.0]
[1731304743182,30.90831485,205.85,205.73,6.5803]
[1731304743389,30.90831485,205.87,205.78,5.94097122]
[1731304743598,30.90831485,205.88,205.79,0.97130758]
[1731304743893,30.90831485,205.92,205.8,5.94097122]
[1731304744070,30.90831485,205.92,205.81,0.97110042]
[1731304744268,30.90831485,205.94,205.82,6.06646122]
[1731304744483,30.90831485,205.94,205.85,20.0]
[1731304744681,30.90831485,205.94,205.87,20.0]
[1731304746796,30.90831485,205.88,205.82,20.0]
[1731304746978,30.90831485,205.87,205.81,5.94097122]
[1731304747288,4.8551,205.97,205.81,5.94097122]
[1731304747289,0.1,205.99,205.82,6.0349]
[1731304747501,30.90831485,205.91,205.83,5.94097122]
[1731304747684,30.90831485,205.9,205.83,5.94097122]
[1731304747873,0.1,205.96,205.83,5.94097122]
[1731304747874,30.90831485,205.87,205.83,5.94097122]
[1731304748270,30.90831485,205.87,205.84,20.0]
[1731304748573,30.90831485,205.88,205.84,20.0]
[1731304748797,30.90831485,205.86,205.84,20.0]
[1731304749092,30.90831485,205.85,205.78,27.15207122]
[1731304749305,30.90831485,205.83,205.78,27.15207122]
[1731304749508,30.90831485,205.81,205.78,5.94097122]
[1731304749793,30.90831485,205.79,205.78,5.94097122]
[1731304750010,30.90831485,205.79,205.72,15.1762]
[1731304750296,30.90831485,205.73,205.7,5.94097122]
[1731304750495,30.90831485,205.71,205.62,21.6591]
[1731304750801,30.90831485,205.71,205.64,5.00910149]
[1731304751095,30.90831485,205.69,205.64,5.94097122]
[1731304751302,30.90831485,205.67,205.62,21.6591]
[1731304751474,30.90831485,205.66,205.62,6.425]
[1731304751794,30.90831485,205.67,205.59,5.00979195]
[1731304752200,30.90831485,205.68,205.59,5.00979195]
[1731304752895,15.6712,205.79,205.6,6.28951566]
[1731304753207,30.90831485,205.74,205.61,0.12549]
[1731304753378,30.90831485,205.76,205.62,7.26148472]
[1731304753579,54.68519885,205.78,205.63,0.12549]
[1731304753888,6.3081,205.8,205.63,0.12549]
[1731304753889,54.68519885,205.79,205.66,6.467]
[1731304754204,30.90831485,205.79,205.66,7.43882347]
[1731304754384,30.90831485,205.79,205.67,6.28951566]
[1731304754695,30.90831485,205.79,205.66,7.43882347]
[1731304754696,30.90831485,205.79,205.66,6.467]
[1731304755194,30.90831485,205.79,205.67,0.12549]
[1731304756299,30.90831485,205.81,205.69,0.12549]
[1731304756989,30.90831485,205.81,205.68,0.12549]
[1731304757781,30.90831485,205.87,205.7,0.12549]
[1731304757984,30.90831485,205.89,205.74,0.12549]
[1731304758177,30.90831485,205.89,205.75,7.2608191]
[1731304758383,30.90831485,205.9,205.76,6.4616]
[1731304758685,30.90831485,205.9,205.77,7.26079358]
[1731304759786,30.90831485,205.88,205.77,6.28951566]
[1731304760302,30.90831485,205.86,205.77,6.28951566]
[1731304760511,30.90831485,205.86,205.76,6.4616]
[1731304760801,30.90831485,205.82,205.76,6.4616]
[1731304761002,30.90831485,205.82,205.73,15.6396]
[1731304761683,30.90831485,205.8,205.73,15.6396]
[1731304762399,30.90831485,205.8,205.71,6.1815]
[1731304762983,30.90831485,205.82,205.71,6.1815]
[1731304763286,30.90831485,205.84,205.72,6.28951566]
[1731304763486,30.90831485,205.82,205.71,6.1815]
[1731304764187,30.90831485,205.84,205.71,6.1815]
[1731304764501,23.776884,205.85,205.72,0.12549]
[1731304764709,30.90831485,205.86,205.72,7.38650274]
[1731304764999,30.90831485,205.86,205.72,6.41500566]
[1731304765396,30.90831485,205.84,205.72,6.41500566]
[1731304765598,30.90831485,205.84,205.72,0.12549]
[1731304767299,23.776884,205.83,205.71,6.1815]
[1731304768505,30.90831485,205.8,205.71,12.47101566]
[1731304768701,30.90831485,205.8,205.71,6.1815]
[1731304768906,30.90831485,205.76,205.68,16.3127]
[1731304769107,23.876884,205.83,205.68,16.3127]
[1731304769108,30.90831485,205.74,205.68,16.3127]
[1731304769903,30.90831485,205.74,205.66,6.0787]
[1731304770892,30.90831485,205.76,205.66,6.0787]
[1731304771093,30.90831485,205.77,205.66,6.0787]
[1731304771403,30.90831485,205.8,205.67,12.78806854]
[1731304771604,30.90831485,205.8,205.68,20.0]
[1731304771806,22.8981,205.84,205.67,20.0]
[1731304771807,30.90831485,205.77,205.67,20.0]
[1731304772592,0.12549,205.83,205.68,1.09727074]
[1731304772593,30.90831485,205.79,205.68,1.09727074]
[1731304772807,30.90831485,205.82,205.68,7.3867864]
[1731304773108,30.90831485,205.84,205.7,0.12549]
[1731304774199,30.90831485,205.82,205.69,20.0]
[1731304774399,30.90831485,205.82,205.67,20.0]
[1731304774604,4.9551,205.97,205.89,20.0]
[1731304774808,30.90831485,205.92,205.89,20.0]
[1731304775107,30.90831485,205.9,205.89,20.0]
[1731304775313,30.90831485,205.9,205.76,0.12549]
[1731304776294,30.90831485,205.92,205.77,20.0]
[1731304776504,30.90831485,205.94,205.78,1.07117909]
[1731304776708,30.90831485,205.94,205.78,0.97117909]
[1731304777396,30.90831485,205.94,205.78,7.7476892]
[1731304777604,30.90831485,205.94,205.79,20.0]
[1731304778587,30.90831485,205.94,205.8,0.12549]
[1731304778999,30.90831485,205.94,205.82,20.0]
[1731304779320,30.90831485,205.96,205.84,20.0]
[1731304779492,30.90831485,205.98,205.86,20.0]
[1731304779817,30.90831485,205.98,205.88,20.0]
[1731304779992,30.90831485,205.96,205.88,26.77651011]
[1731304780187,6.06938479,206.12,205.9,20.0]
[1731304780391,30.90831485,206.06,205.91,23.34935623]
[1731304780591,30.90831485,206.04,205.91,30.12586634]
[1731304781191,30.90831485,206.06,205.91,30.12586634]
[1731304781521,30.90831485,206.04,205.91,30.12586634]
[1731304782296,0.1,206.13,205.92,20.12549]
[1731304782492,30.90831485,206.08,205.94,20.0]
[1731304782705,30.90831485,206.08,205.95,15.26233954]
[1731304782913,30.90831485,206.06,205.96,20.0]
[1731304783093,30.90831485,206.06,205.97,15.26233954]
[1731304783298,30.90831485,206.06,205.98,20.0]
[1731304783496,0.12549,206.12,205.98,20.0]
[1731304783497,23.776884,206.05,205.98,20.0]
[1731304783703,23.776884,206.07,205.98,28.34669344]
[1731304784019,23.776884,206.07,205.94,13.893132]
[1731304784020,23.776884,206.07,206.0,20.0]
[1731304784318,23.776884,206.07,206.0,28.34669344]
[1731304784620,30.90831485,206.1,206.02,20.0]
[1731304785001,30.90831485,206.1,205.98,20.0]
[1731304785205,30.90831485,206.1,206.03,20.0]
[1731304785614,30.90831485,206.06,205.99,20.0]
[1731304785814,30.90831485,206.02,205.89,26.95363569]
[1731304786020,30.90831485,206.02,205.91,8.34669344]
[1731304786201,30.90831485,205.99,205.91,8.34669344]
[1731304786401,30.90831485,206.06,205.92,8.50753504]
[1731304786597,30.90831485,206.06,205.93,8.34669344]
[1731304786812,30.90831485,206.06,205.93,15.88340077]
[1731304787310,30.90831485,206.06,205.93,8.34669344]
[1731304787311,23.776884,206.05,205.93,8.34669344]
[1731304787504,30.90831485,206.06,205.94,20.0]
[1731304787707,30.90831485,206.06,205.96,20.0]
[1731304787903,30.90831485,206.06,205.97,20.0]
[1731304788299,30.90831485,206.02,205.97,20.0]
[1731304788627,30.90831485,206.04,205.97,20.0]
[1731304788803,23.776884,206.05,205.97,28.34669344]
[1731304791298,30.90831485,206.04,205.97,28.34669344]
[1731304792402,30.90831485,206.06,205.97,28.34669344]
[1731304797004,30.90831485,206.06,205.98,8.34669344]
[1731304797206,30.90831485,206.06,205.99,20.0]
[1731304798016,0.1,206.1,205.99,20.0]
[1731304798226,30.90831485,206.1,206.0,20.0]
[1731304798403,23.776884,206.12,206.0,20.0]
[1731304798404,23.776884,206.11,206.0,35.88340077]
[1731304798604,30.90831485,206.12,206.01,6.5365]
[1731304798819,30.90831485,206.12,206.02,20.0]
[1731304799332,30.90831485,206.1,206.02,28.34669344]
[1731304800229,30.90831485,206.1,205.96,7.53670733]
[1731304800230,30.90831485,206.08,205.96,6.5365]
[1731304800517,23.776884,206.05,205.97,8.34669344]
[1731304800818,54.68519885,206.05,205.97,8.34669344]
[1731304801022,30.90831485,206.03,205.95,15.9939]
[1731304801226,23.776884,206.02,205.91,6.5365]
[1731304801927,30.90831485,205.93,205.85,5.00449531]
[1731304802112,30.90831485,205.89,205.85,5.00449531]
[1731304802312,23.776884,205.88,205.8,6.5365]
[1731304802513,23.776884,205.88,205.79,15.9939]
[1731304802702,30.90831485,205.92,205.8,6.6834707]
[1731304802906,23.776884,205.93,205.8,13.46709699]
[1731304803103,23.776884,205.93,205.8,6.6834707]
[1731304803307,23.776884,205.93,205.81,6.78362629]
[1731304803515,23.776884,205.93,205.82,6.5365]
[1731304803708,0.1,206.05,205.84,16.1919]
[1731304803908,30.90831485,205.99,205.85,13.46709699]
[1731304804102,30.90831485,205.97,205.85,13.46709699]
[1731304804321,30.90831485,205.92,205.85,20.0]
[1731304804814,30.90831485,205.96,205.85,20.0]
[1731304805517,30.90831485,205.98,205.85,20.97109388]
[1731304805704,30.90831485,205.98,205.87,20.0]
[1731304805905,30.90831485,206.02,205.89,20.0]
[1731304806140,30.90831485,206.06,205.92,20.0]
[1731304806428,30.90831485,206.04,205.92,20.0]
[1731304806625,30.90831485,206.02,205.92,20.0]
[1731304807313,0.1,206.03,205.92,20.0]
[1731304807515,30.90831485,206.0,205.92,20.0]
[1731304807714,30.90831485,206.02,205.92,20.0]
[1731304807920,30.90831485,206.0,205.92,20.0]
[1731304808323,30.90831485,205.98,205.92,20.0]
[1731304809542,30.90831485,206.02,205.92,20.0]
[1731304809706,30.90831485,206.04,205.92,20.0]
[1731304809913,30.90831485,206.06,205.96,20.0]
[1731304810230,30.90831485,206.08,205.96,26.78362629]
[1731304810422,6.0153,206.12,205.95,16.2664]
[1731304810423,30.90831485,206.1,205.98,20.0]
[1731304810621,6.0153,206.12,205.98,20.0]
[1731304810622,30.90831485,206.08,205.98,20.0]
[1731304810820,30.90831485,206.06,205.98,20.0]
[1731304811326,30.90831485,206.06,205.96,20.0]
[1731304812210,30.90831485,206.04,205.96,20.0]
[1731304812435,30.90831485,206.0,205.95,16.2664]
[1731304813140,30.90831485,206.02,205.95,16.2664]
[1731304813934,30.90831485,205.97,205.92,20.0]
[1731304814141,30.90831485,205.99,205.92,20.0]
[1731304814634,0.1,206.03,205.92,13.46709699]
[1731304814838,0.1,206.03,205.82,4.99737642]
[1731304814839,30.90831485,205.95,205.82,4.99737642]
[1731304815142,30.90831485,205.98,205.83,6.25911629]
[1731304815539,30.90831485,205.98,205.83,6.35911629]
[1731304816015,30.90831485,205.96,205.84,20.0]
[1731304816550,0.12549,206.03,205.84,20.0]
[1731304816551,30.90831485,205.98,205.84,20.0]
[1731304816721,30.90831485,205.98,205.84,26.13362629]
[1731304817542,21.4646,206.06,205.84,26.13362629]
[1731304817543,6.4696,206.11,205.89,0.1]
[1731304817841,30.90831485,206.03,205.91,20.0]
[1731304818014,30.90831485,205.99,205.91,20.0]
[1731304818218,30.90831485,206.01,205.91,20.0]
[1731304818517,30.90831485,206.05,205.91,20.12549]
[1731304818719,30.90831485,206.07,205.93,0.12549]
[1731304818922,30.90831485,206.09,205.95,0.12549]
[1731304819137,30.90831485,206.07,205.95,20.0]
[1731304819741,30.90831485,206.08,205.95,26.13362629]
[1731304819947,30.90831485,206.07,205.95,26.13362629]
[1731304820233,30.90831485,206.1,205.97,20.12549]
[1731304820439,33.0812,206.17,205.97,20.12549]
[1731304820440,30.90831485,206.11,205.97,20.12549]
[1731304820623,30.90831485,206.1,205.97,20.12549]
[1731304820825,30.90831485,206.1,205.99,20.0]
[1731304821027,30.90831485,206.16,205.99,20.0]
[1731304821028,30.90831485,206.09,205.99,20.0]
[1731304821227,30.90831485,206.16,205.99,20.0]
[1731304821228,30.90831485,206.1,205.99,20.0]
[1731304821625,30.90831485,206.12,206.01,20.0]
[1731304821922,30.90831485,206.11,206.01,20.0]
[1731304822341,30.90831485,206.1,206.01,20.0]
[1731304822548,30.90831485,206.12,206.01,20.0]
[1731304822839,30.90831485,206.13,206.01,20.0]
[1731304823140,10.0,206.17,206.16,20.0]
[1731304823823,10.0,206.17,206.13,20.0]
[1731304824021,10.0,206.17,206.14,0.12549]
[1731304824419,30.90831485,206.29,206.16,20.0]
[1731304824629,30.90831485,206.26,206.16,20.0]
[1731304825626,15.0596,206.37,206.17,1.09501854]
[1731304825627,30.90831485,206.31,206.17,1.09501854]
[1731304825843,15.0596,206.37,206.17,1.09501854]
[1731304825844,30.90831485,206.33,206.19,0.12549]
[1731304826140,30.90831485,206.33,206.19,1.09476774]
[1731304826435,30.90831485,206.38,206.21,0.12549]
[1731304826639,30.90831485,206.38,206.21,27.22818795]
[1731304826832,0.1,206.45,206.21,27.22818795]
[1731304827034,5.96137174,206.59,206.21,27.22818795]
[1731304827035,0.1,206.49,206.28,20.12549]
[1731304827246,30.90831485,206.43,206.3,20.0]
[1731304827450,30.90831485,206.4,206.3,20.0]
[1731304827645,30.90831485,206.39,206.3,20.0]
[1731304827856,30.90831485,206.32,206.28,20.0]
[1731304828032,30.90831485,206.34,206.28,20.0]
[1731304828347,30.90831485,206.37,206.28,20.0]
[1731304828655,0.12549,206.44,206.28,20.0]
[1731304828656,30.90831485,206.38,206.28,20.0]
[1731304828947,30.90831485,206.39,206.28,20.0]
[1731304829127,30.90831485,206.42,206.28,26.13362629]
[1731304829431,30.90831485,206.37,206.28,20.0]
[1731304829632,30.90831485,206.32,206.28,6.1777707]
[1731304829839,30.90831485,206.3,206.23,15.9832]
[1731304830038,30.90831485,206.32,206.23,15.9832]
[1731304830348,30.90831485,206.38,206.25,0.12549]
[1731304830533,0.1,206.49,206.25,6.35911629]
[1731304830841,30.90831485,206.41,206.27,0.12549]
[1731304831048,30.90831485,206.4,206.27,26.25911629]
[1731304831227,30.90831485,206.42,206.29,20.12549]
[1731304831428,30.90831485,206.41,206.29,20.12549]
[1731304831628,30.90831485,206.42,206.29,26.25911629]
[1731304831849,30.90831485,206.41,206.29,26.25911629]
[1731304832336,30.90831485,206.41,206.29,26.13362629]
[1731304832538,30.90831485,206.41,206.3,0.12549]
[1731304832745,30.90831485,206.43,206.32,20.0]
[1731304832948,30.90831485,206.44,206.32,20.0]
[1731304833150,30.90831485,206.45,206.33,0.12549]
[1731304833447,30.90831485,206.46,206.33,0.12549]
[1731304833647,30.90831485,206.52,206.34,20.0]
[1731304833648,30.90831485,206.44,206.34,20.0]
[1731304834436,30.90831485,206.45,206.32,20.0]
[1731304835137,30.90831485,206.48,206.33,6.13362629]
[1731304835330,30.90831485,206.46,206.34,20.0]
[1731304835746,30.90831485,206.47,206.34,20.0]
[1731304835939,30.90831485,206.47,206.31,6.4922]
[1731304835940,30.90831485,206.47,206.32,20.0]
[1731304836343,30.90831485,206.46,206.32,20.0]
[1731304836530,30.90831485,206.45,206.33,6.13362629]
[1731304836740,30.90831485,206.45,206.32,20.0]
[1731304836939,30.90831485,206.45,206.33,6.13362629]
[1731304837135,30.90831485,206.45,206.34,20.0]
[1731304837448,30.90831485,206.42,206.33,6.13362629]
[1731304837649,0.2,206.51,206.33,6.13362629]
[1731304837650,30.90831485,206.41,206.33,6.13362629]
[1731304837852,30.90831485,206.38,206.31,6.4922]
[1731304838029,0.1,206.47,206.31,6.4922]
[1731304838353,30.90831485,206.39,206.31,6.4922]
[1731304838543,30.90831485,206.38,206.31,6.4922]
[1731304838852,30.90831485,206.39,206.31,6.4922]
[1731304839352,30.90831485,206.37,206.31,6.4922]
[1731304839731,0.1,206.46,206.31,6.4922]
[1731304839732,30.90831485,206.36,206.31,6.4922]
[1731304839951,30.90831485,206.37,206.31,6.4922]
[1731304840141,30.90831485,206.38,206.31,6.4922]
[1731304840547,0.1,206.45,206.32,20.0]
[1731304840736,30.90831485,206.41,206.32,20.0]
[1731304841451,30.90831485,206.46,206.33,15.893]
[1731304841658,19.361909,206.57,206.34,26.13362629]
[1731304841659,16.4886,206.54,206.34,26.13362629]
[1731304841843,30.90831485,206.47,206.34,26.13362629]
[1731304842155,30.90831485,206.46,206.34,26.13362629]
[1731304842532,30.90831485,206.47,206.34,26.13362629]
[1731304842846,16.4886,206.54,206.34,26.13362629]
[1731304842847,30.90831485,206.49,206.34,26.13362629]
[1731304843541,16.3886,206.54,206.35,0.12549]
[1731304843739,30.90831485,206.53,206.37,20.12549]
[1731304843936,30.90831485,206.53,206.38,6.13362629]
[1731304844131,30.90831485,206.53,206.39,20.0]
[1731304844339,30.90831485,206.53,206.39,6.13362629]
[1731304844750,30.90831485,206.53,206.4,20.0]
[1731304844951,0.12549,206.57,206.42,20.0]
[1731304845137,30.90831485,206.54,206.42,20.0]
[1731304845334,30.90831485,206.52,206.42,20.0]
[1731304847055,30.90831485,206.58,206.44,20.0]
[1731304847232,30.90831485,206.58,206.45,6.13362629]
[1731304847431,6.3228,206.62,206.46,20.0]
[1731304847636,30.90831485,206.58,206.46,26.13362629]
[1731304849036,6.3228,206.62,206.46,26.13362629]
[1731304849235,30.90831485,206.58,206.46,26.13362629]
[1731304850247,30.90831485,206.57,206.46,26.13362629]
[1731304850451,30.90831485,206.55,206.46,26.13362629]
[1731304851965,30.90831485,206.54,206.46,26.13362629]
[1731304852156,0.12549,206.61,206.43,16.4049]
[1731304852157,30.90831485,206.52,206.44,20.0]
[1731304852363,30.90831485,206.53,206.44,20.0]
[1731304852573,30.90831485,206.53,206.44,26.13362629]
[1731304852868,30.90831485,206.55,206.44,26.13362629]
[1731304853058,30.90831485,206.56,206.44,26.13362629]
[1731304854674,30.90831485,206.54,206.44,26.13362629]
[1731304855164,30.90831485,206.55,206.45,6.13362629]
[1731304855366,30.90831485,206.55,206.46,20.0]
[1731304855565,30.90831485,206.58,206.46,26.13362629]
[1731304855752,31.00831485,206.64,206.46,26.13362629]
[1731304855753,30.90831485,206.57,206.46,26.13362629]
[1731304857672,30.90831485,206.59,206.48,20.0]
[1731304858578,30.90831485,206.57,206.48,20.0]